bitfinex-derivatives/quotes_SOLF0:USTF0_20240829
["timestamp","ask_amount","ask_price","bid_price","bid_amount"]
[1724913473316,0.05157619,145.04,145.01,3.49754511]
[1724913482813,3.49807619,145.04,145.01,3.49754511]
[1724913483416,3.4467,145.03,145.01,0.05054511]
[1724913483723,0.05157619,145.04,145.01,0.05054511]
[1724913484314,10.64157619,145.04,145.01,0.05054511]
[1724913485617,3.4469,145.02,145.01,0.05054511]
[1724913485819,14.0369,145.02,145.01,0.05054511]
[1724913499739,3.4469,145.02,145.01,0.05054511]
[1724913500334,0.05157619,145.04,145.01,0.05054511]
[1724913501038,3.49807619,145.04,145.01,0.05054511]
[1724913501239,0.05157619,145.04,145.01,0.05054511]
[1724913502347,0.05157619,145.04,145.03,3.4467]
[1724913502642,0.05157619,145.04,145.01,0.05054511]
[1724913504447,0.05157619,145.04,145.01,3.49764511]
[1724913508440,0.05157619,145.04,145.03,3.4467]
[1724913508643,0.05157619,145.04,145.01,10.64054511]
[1724913509845,0.05157619,145.04,145.01,0.05054511]
[1724913510054,0.05157619,145.04,145.02,10.59]
[1724913510343,0.05157619,145.04,145.03,3.4467]
[1724913511146,0.05157619,145.04,145.01,3.49744511]
[1724913511339,25.30352734,145.25,145.01,3.49744511]
[1724913511340,32.21052734,145.25,145.03,52.95]
[1724913511538,38.36230454,145.27,145.14,3.444]
[1724913511539,14.2005,145.22,145.14,3.444]
[1724913511740,1.26680032,145.21,145.19,10.59]
[1724913512047,10.09793558,145.29,145.25,3.4413]
[1724913512243,10.09793558,145.29,145.28,10.59]
[1724913512441,3.53152381,145.34,145.28,10.59]
[1724913512642,0.04840759,145.3,145.28,10.59]
[1724913512838,0.04756917,145.3,145.28,10.59]
[1724913513041,0.04756917,145.3,145.29,10.59]
[1724913513246,1.2455,145.38,145.29,52.95]
[1724913513551,339.0,145.55,145.29,52.95]
[1724913513552,1.3105,145.43,145.34,10.59]
[1724913513852,1.3105,145.43,145.26,4.68]
[1724913513853,10.59,145.39,145.32,15.27]
[1724913514146,1.26466041,145.42,145.32,31.1]
[1724913514347,0.04911378,145.37,145.34,0.04976556]
[1724913516343,26.46911378,145.37,145.34,0.04976556]
[1724913516546,26.42,145.35,145.34,0.04976556]
[1724913517244,29.8591,145.35,145.34,0.04976556]
[1724913517451,26.42,145.35,145.24,26.42]
[1724913517647,26.42,145.32,145.25,5.0]
[1724913517843,26.42,145.27,145.06,8.47579318]
[1724913518151,26.42,145.21,145.11,31.42]
[1724913518340,26.42,145.21,145.11,26.42]
[1724913518543,0.04384002,145.17,145.15,0.05046473]
[1724913519146,26.42,145.22,145.12,26.42]
[1724913519342,26.42,145.21,145.1,31.9238]
[1724913519548,26.42,145.19,145.1,31.9238]
[1724913519750,5.0,145.24,145.1,31.9238]
[1724913519949,3.4432,145.18,145.1,5.5038]
[1724913520249,0.04949062,145.15,145.13,0.05154958]
[1724913520553,3.4431,145.18,145.13,0.05154958]
[1724913520741,33.07,145.2,145.13,0.05154958]
[1724913521448,0.04510461,145.18,145.13,0.05154958]
[1724913523959,0.04510461,145.18,145.14,33.07]
[1724913524252,0.04510461,145.18,145.15,5.0]
[1724913524951,34.3159,145.27,145.16,33.07]
[1724913525953,0.0503157,145.23,145.2,0.05295269]
[1724913526156,3.4424,145.21,145.2,0.05295269]
[1724913527650,33.07,145.21,145.09,5.0]
[1724913527860,33.07,145.17,145.09,5.0]
[1724913528051,3.4443,145.14,145.09,5.0]
[1724913528352,33.07,145.17,145.09,5.0]
[1724913528558,0.05177033,145.14,145.12,0.05198986]
[1724913528860,3.4443,145.13,145.12,0.05198986]
[1724913536863,3.49587033,145.14,145.12,0.05198986]
[1724913537061,0.05177033,145.14,145.12,0.05198986]
[1724913537256,33.12177033,145.14,145.12,0.05198986]
[1724913537461,3.4443,145.13,145.12,0.05198986]
[1724913542070,0.05177033,145.14,145.12,0.05198986]
[1724913542459,3.4443,145.13,145.12,0.05198986]
[1724913544170,0.05177033,145.14,145.12,0.05198986]
[1724913544758,3.4443,145.13,145.12,0.05198986]
[1724913546461,0.05177033,145.14,145.12,0.05198986]
[1724913546661,0.05177033,145.14,145.12,5.05198986]
[1724913547172,3.49597033,145.14,145.12,5.05198986]
[1724913550062,0.05177033,145.14,145.12,5.05198986]
[1724913550259,27.7734,145.22,145.12,31.52198986]
[1724913550458,27.7734,145.22,145.12,31.47]
[1724913550459,26.47,145.22,145.12,31.47]
[1724913550768,3.4434,145.17,145.12,31.47]
[1724913551161,0.04711168,145.16,145.13,0.0463276]
[1724913552566,3.49071168,145.16,145.13,0.0463276]
[1724913552769,0.04711168,145.16,145.13,0.0463276]
[1724913553276,3.444,145.14,145.13,5.2263276]
[1724913554369,3.444,145.14,145.13,0.0463276]
[1724913554671,26.47,145.14,144.94,8.49301187]
[1724913554875,26.47,145.12,145.03,5.18]
[1724913555071,26.47,145.12,145.04,5.18]
[1724913555571,26.47,145.1,145.02,26.47]
[1724913555768,0.04472614,145.09,145.07,0.04678276]
[1724913555970,3.4455,145.08,145.07,0.04866536]
[1724913557471,29.9155,145.08,145.07,0.04866536]
[1724913557666,3.4465,145.04,145.02,5.2]
[1724913558671,3.49353998,145.04,145.02,5.24675457]
[1724913559268,3.4467,145.03,145.02,5.24675457]
[1724913559882,3.4467,145.03,145.02,0.04675457]
[1724913585689,26.47,145.03,144.91,5.3403]
[1724913585896,26.47,145.0,144.91,28.3608]
[1724913586196,26.47,145.0,144.95,5.08]
[1724913586591,3.4482,144.97,144.95,5.08]
[1724913586798,3.4482,144.97,144.96,0.05240654]
[1724913588797,26.47,144.98,144.84,2.0712]
[1724913588994,3.43024174,144.98,144.86,26.47]
[1724913589194,26.47,144.95,144.86,26.47]
[1724913589388,3.4497,144.91,144.87,3.53263187]
[1724913589795,0.04995823,144.9,144.88,0.04691342]
[1724913589992,0.05066238,144.9,144.88,0.04691342]
[1724913591005,3.50056238,144.9,144.88,0.04691342]
[1724913591500,3.45,144.89,144.88,0.04691342]
[1724913591907,0.05066238,144.9,144.88,0.04691342]
[1724913592101,3.50056238,144.9,144.88,0.04691342]
[1724913592598,0.05066238,144.9,144.88,0.04691342]
[1724913592797,0.05066238,144.9,144.89,26.47]
[1724913593198,365.47,144.99,144.89,26.47]
[1724913593199,3.4477,144.99,144.95,3.4483]
[1724913593394,3.4477,144.99,144.89,52.94]
[1724913593395,26.47,145.06,144.97,26.47]
[1724913593593,26.47,145.06,144.97,31.55]
[1724913593800,3.4478,144.98,144.97,31.55]
[1724913595602,3.4478,144.98,144.97,5.08]
[1724913597509,3.4478,144.98,144.96,26.51648448]
[1724913597706,3.4481,144.97,144.96,5.12648448]
[1724913599908,0.04778171,144.99,144.86,1.292]
[1724913599909,26.47,144.98,144.86,1.292]
[1724913600112,26.47,144.98,144.89,5.08]
[1724913600113,2.6626,144.98,144.89,5.08]
[1724913600308,26.47,144.96,144.89,5.08]
[1724913600913,0.04471873,144.94,144.91,0.04576185]
[1724913601115,3.4493,144.92,144.91,0.04576185]
[1724913603303,0.04471873,144.94,144.91,0.04576185]
[1724913603715,3.49371873,144.94,144.91,0.04576185]
[1724913604305,0.04471873,144.94,144.91,0.04576185]
[1724913605016,3.4492,144.93,144.91,0.04576185]
[1724913605807,3.4493,144.92,144.91,0.04576185]
[1724913613023,3.4492,144.93,144.91,0.04576185]
[1724913613223,0.04471873,144.94,144.91,0.04576185]
[1724913613724,0.04471873,144.94,144.92,3.4491]
[1724913616330,3.49361873,144.94,144.91,0.04576185]
[1724913617423,3.49361873,144.94,144.91,3.49516185]
[1724913618735,3.449,144.93,144.91,3.49516185]
[1724913619236,0.04471873,144.94,144.91,3.49516185]
[1724913620137,0.04471873,144.94,144.91,0.04576185]
[1724913621440,0.04471873,144.94,144.92,3.4493]
[1724913621935,0.04471873,144.94,144.93,3.449]
[1724913623635,0.04471873,144.94,144.91,0.04576185]
[1724913624237,0.04471873,144.94,144.91,3.49516185]
[1724913624444,0.04471873,144.94,144.91,0.04576185]
[1724913625339,0.04471873,144.94,144.92,3.4492]
[1724913626247,0.04471873,144.94,144.91,3.49516185]
[1724913627041,0.04471873,144.94,144.91,0.04576185]
[1724913627745,0.04471873,144.94,144.92,3.4493]
[1724913629439,3.49351873,144.94,144.91,3.49506185]
[1724913629840,0.04471873,144.94,144.92,3.4491]
[1724913631849,0.04471873,144.94,144.93,3.449]
[1724913635948,0.04471873,144.94,144.93,14.049]
[1724913637856,0.04471873,144.94,144.93,10.6]
[1724913639457,0.04471873,144.94,144.93,14.049]
[1724913642358,0.04471873,144.94,144.92,3.4492]
[1724913642654,0.04471873,144.94,144.91,0.04576185]
[1724913642860,3.49361873,144.94,144.91,3.49506185]
[1724913643055,0.04471873,144.94,144.91,0.04576185]
[1724913643449,3.4492,144.93,144.91,0.04576185]
[1724913643760,1.32451873,144.94,144.91,0.04576185]
[1724913644259,3.4492,144.93,144.91,0.04576185]
[1724913644456,1.32451873,144.94,144.91,0.04576185]
[1724913645052,3.449,144.93,144.91,0.04576185]
[1724913645661,0.04471873,144.94,144.92,10.6]
[1724913646256,0.04471873,144.94,144.93,3.449]
[1724913647159,0.04471873,144.94,144.92,14.0492]
[1724913647359,0.04471873,144.94,144.92,10.6]
[1724913647864,0.04471873,144.94,144.93,3.449]
[1724913650367,0.04471873,144.94,144.93,6.5027718]
[1724913652863,0.04471873,144.94,144.93,3.449]
[1724913653062,0.04471873,144.94,144.93,6.50261183]
[1724913653263,0.04471873,144.94,144.93,3.449]
[1724913653563,0.04471873,144.94,144.93,6.50251605]
[1724913654160,398.94173824,145.06,144.93,3.05351605]
[1724913654464,13.1565,145.04,144.97,10.6]
[1724913654768,4.7022,145.01,144.97,14.0479]
[1724913655064,0.04699491,145.0,144.98,0.04718514]
[1724913655568,0.04699491,145.0,144.98,6.54463124]
[1724913655764,0.04699491,145.0,144.98,3.49498514]
[1724913656766,3.49449491,145.0,144.98,0.04718514]
[1724913656963,0.04699491,145.0,144.98,0.04718514]
[1724913657761,0.04699491,145.0,144.98,3.09682675]
[1724913658172,0.04699491,145.0,144.98,0.04718514]
[1724913658374,0.04699491,145.0,144.98,3.49498514]
[1724913658966,0.04699491,145.0,144.98,0.04718514]
[1724913659668,3.4476,144.99,144.98,0.04718514]
[1724913659862,0.04699491,145.0,144.98,0.04718514]
[1724913660063,3.49449491,145.0,144.98,0.04718514]
[1724913661568,3.4476,144.99,144.98,0.04718514]
[1724913663572,3.49439491,145.0,144.98,0.04718514]
[1724913664275,3.4476,144.99,144.95,14.0485]
[1724913664472,3.4476,144.99,144.96,3.0503003]
[1724913664675,10.64699491,145.0,144.96,3.0503003]
[1724913664877,3.4476,144.99,144.95,8.3285]
[1724913665470,3.4476,144.99,144.96,0.04656756]
[1724913666173,3.4481,144.97,144.96,0.04656756]
[1724913666374,10.64699491,145.0,144.96,0.04656756]
[1724913667169,3.4479,144.98,144.96,0.04656756]
[1724913668175,3.4481,144.97,144.96,0.04656756]
[1724913670079,4.7923,144.97,144.96,0.04656756]
[1724913670791,3.4481,144.97,144.96,0.04656756]
[1724913673292,3.4486,144.95,144.92,4.86]
[1724913674182,3.49413449,144.95,144.92,4.905987]
[1724913674388,3.49413449,144.95,144.92,8.355287]
[1724913675383,3.49413449,144.95,144.92,3.495287]
[1724913675790,3.49413449,144.95,144.92,0.045987]
[1724913676689,3.49413449,144.95,144.92,3.495287]
[1724913677392,3.49413449,144.95,144.92,0.045987]
[1724913677691,3.49413449,144.95,144.92,3.495187]
[1724913679502,0.04553449,144.95,144.92,0.045987]
[1724913679708,0.04553449,144.95,144.87,4.86]
[1724913679709,11.8489,144.94,144.87,4.86]
[1724913680001,3.4494,144.92,144.87,15.46]
[1724913680200,11.8489,144.94,144.88,3.45]
[1724913680599,0.05176121,144.92,144.9,0.04605125]
[1724913681201,3.4496,144.91,144.9,0.04605125]
[1724913682005,3.50106121,144.92,144.9,0.04605125]
[1724913682709,3.4495,144.91,144.9,0.04605125]
[1724913683105,0.05176121,144.92,144.9,0.04605125]
[1724913683706,0.05176121,144.92,144.91,10.6]
[1724913685405,0.05176121,144.92,144.91,14.0495]
[1724913687213,0.05176121,144.92,144.91,17.54966219]
[1724913690616,0.05176121,144.92,144.91,14.0495]
[1724913691017,0.05176121,144.92,144.91,18.9095]
[1724913692019,0.05176121,144.92,144.91,15.46]
[1724913692215,0.05176121,144.92,144.91,4.86]
[1724913692613,0.05176121,144.92,144.91,15.46]
[1724913692823,0.05176121,144.92,144.91,18.9095]
[1724913698926,0.05176121,144.92,144.91,8.3095]
[1724913709024,0.05176121,144.92,144.91,18.9095]
[1724913710633,3.4484,144.96,144.91,18.9095]
[1724913710634,1.3335,145.0,144.97,3.4481]
[1724913711629,4.82705711,145.0,144.97,3.49288438]
[1724913714432,4.82705711,145.0,144.98,3.4478]
[1724913715537,1.37955711,145.0,144.98,3.4478]
[1724913718538,4.82695711,145.0,144.98,3.4478]
[1724913718842,1.37955711,145.0,144.98,3.4478]
[1724913720643,1.37955711,145.0,144.97,3.49278438]
[1724913721334,1.37955711,145.0,144.97,0.04478438]
[1724913721735,1.3659,144.99,144.97,0.04478438]
[1724913721940,3.4478,144.98,144.97,0.04478438]
[1724913724641,13.2754,144.99,144.93,4.74]
[1724913725340,3.4484,144.96,144.93,8.189]
[1724913725548,0.04757371,144.96,144.93,3.49260778]
[1724913725845,3.49607371,144.96,144.93,3.49260778]
[1724913726244,0.04757371,144.96,144.93,0.04360778]
[1724913726448,3.4486,144.95,144.93,0.04360778]
[1724913727733,0.04757371,144.96,144.93,0.04360778]
[1724913728337,3.4487,144.95,144.93,0.04360778]
[1724913729040,3.4488,144.94,144.93,0.04360778]
[1724913730139,3.4488,144.94,144.9,14.0496]
[1724913731247,3.4488,144.94,144.91,0.05116821]
[1724913731441,3.4491,144.93,144.91,0.05116821]
[1724913731843,10.64757371,144.96,144.91,0.05116821]
[1724913732039,3.4491,144.93,144.91,0.05116821]
[1724913732745,10.64757371,144.96,144.91,0.05116821]
[1724913734152,3.4492,144.93,144.91,0.05116821]
[1724913735550,10.6,144.93,144.85,27.58]
[1724913735743,1.3664,144.92,144.86,10.6]
[1724913736345,3.4499,144.9,144.86,14.0505]
[1724913736752,0.05175164,144.89,144.87,0.04590644]
[1724913739551,0.05175164,144.89,144.78,44.7658]
[1724913739552,10.65175164,144.89,144.78,44.7658]
[1724913739753,10.6,144.88,144.82,10.6]
[1724913740257,3.4508,144.86,144.83,3.4513]
[1724913740557,3.49661012,144.86,144.83,3.50275849]
[1724913741053,0.04581012,144.86,144.83,3.50275849]
[1724913741653,0.04581012,144.86,144.84,3.4512]
[1724913742447,0.04581012,144.86,144.85,3.4509]
[1724913742661,0.04581012,144.86,144.85,14.0509]
[1724913750967,0.04581012,144.86,144.85,3.4509]
[1724913751164,0.04581012,144.86,144.85,8.1709]
[1724913751959,0.04581012,144.86,144.83,0.05145849]
[1724913752165,0.04581012,144.86,144.83,4.77145849]
[1724913752566,3.49671012,144.86,144.83,8.22285849]
[1724913754965,3.49671012,144.86,144.84,3.4511]
[1724913754966,0.04581012,144.86,144.84,3.4511]
[1724913758178,3.49651012,144.86,144.83,3.50285849]
[1724913759874,0.04581012,144.86,144.83,0.05145849]
[1724913760275,3.49661012,144.86,144.83,0.05145849]
[1724913760475,0.04581012,144.86,144.83,0.05145849]
[1724913761270,3.49661012,144.86,144.83,3.50285849]
[1724913761474,10.6,144.85,144.83,0.05145849]
[1724913761973,14.0511,144.85,144.83,0.05145849]
[1724913763476,3.4512,144.84,144.83,0.05145849]
[1724913763665,10.6,144.84,144.76,27.58]
[1724913763872,10.6,144.84,144.77,4.72]
[1724913763873,10.6,144.82,144.77,4.72]
[1724913764164,3.4518,144.82,144.78,3.4524]
[1724913764372,10.6,144.82,144.78,3.4524]
[1724913764565,10.6,144.82,144.72,2.4208]
[1724913764779,3.49935364,144.81,144.77,3.4527]
[1724913764971,0.04735364,144.81,144.77,3.4527]
[1724913765171,3.49935364,144.81,144.77,3.4527]
[1724913765367,3.49935364,144.81,144.77,10.6]
[1724913765368,0.04735364,144.81,144.77,10.6]
[1724913767075,10.64735364,144.81,144.73,4.72]
[1724913767280,10.64735364,144.81,144.74,10.6]
[1724913767578,10.6,144.8,144.76,3.4531]
[1724913768286,0.04735364,144.81,144.76,10.6]
[1724913769181,3.49935364,144.81,144.78,3.4526]
[1724913769579,0.04735364,144.81,144.79,3.4523]
[1724913769880,0.04735364,144.81,144.79,10.6]
[1724913770378,0.04735364,144.81,144.8,3.4521]
[1724913774478,0.04735364,144.81,144.77,10.6]
[1724913776082,0.04735364,144.81,144.8,3.4521]
[1724913778789,0.04735364,144.81,144.79,8.1723]
[1724913779182,0.04735364,144.81,144.79,4.72]
[1724913779480,0.04735364,144.81,144.8,3.4521]
[1724913783782,0.04735364,144.81,144.79,3.4522]
[1724913785290,0.04735364,144.81,144.77,4.72]
[1724913785291,0.04735364,144.81,144.78,3.4526]
[1724913785793,3.49935364,144.81,144.78,3.4526]
[1724913788189,3.4523,144.8,144.77,3.4528]
[1724913790292,14.09935364,144.81,144.77,3.4528]
[1724913792795,14.09935364,144.81,144.78,3.4526]
[1724913794501,0.04735364,144.81,144.79,3.4523]
[1724913796888,0.04735364,144.81,144.77,10.6]
[1724913797190,0.04735364,144.81,144.78,10.6]
[1724913798197,0.04735364,144.81,144.8,3.4521]
[1724913800196,0.04735364,144.81,144.8,14.0521]
[1724913800394,0.04735364,144.81,144.8,18.7721]
[1724913806299,55.82376777,144.88,144.8,15.32]
[1724913806498,1.3129,144.9,144.84,10.6]
[1724913807088,4.7628,144.9,144.86,3.4505]
[1724913807293,0.05205025,144.89,144.87,0.04736618]
[1724913808898,3.50205025,144.89,144.87,0.04736618]
[1724913809199,0.05205025,144.89,144.87,0.04736618]
[1724913810089,0.05205025,144.89,144.87,3.49766618]
[1724913815597,3.50215025,144.89,144.87,0.04736618]
[1724913816602,0.05205025,144.89,144.87,3.49776618]
[1724913817207,0.05205025,144.89,144.87,0.04736618]
[1724913818306,0.05205025,144.89,144.87,3.49776618]
[1724913820005,0.05205025,144.89,144.88,3.4502]
[1724913824307,0.05205025,144.89,144.88,14.0502]
[1724913825208,0.05205025,144.89,144.88,3.4502]
[1724913827616,0.05205025,144.89,144.88,14.0502]
[1724913832317,339.0,145.0,144.91,3.4493]
[1724913832519,1.2929,145.0,144.92,10.6]
[1724913832812,1.2929,145.0,144.96,3.4482]
[1724913833012,4.7404,145.0,144.96,3.4482]
[1724913833214,1.2929,145.0,144.94,10.6]
[1724913833412,0.05219798,144.98,144.96,0.04905305]
[1724913833914,10.65219798,144.98,144.96,0.04905305]
[1724913834114,3.4481,144.97,144.96,0.04905305]
[1724913835915,3.4484,144.96,144.93,3.449]
[1724913836815,1.3602,144.97,144.94,3.4487]
[1724913837217,1.3602,144.97,144.93,10.65036338]
[1724913837416,1.3602,144.97,144.94,3.4486]
[1724913838523,0.05219798,144.98,144.93,10.65036338]
[1724913839320,3.50009798,144.98,144.95,3.4484]
[1724913840221,3.4481,144.97,144.94,3.4487]
[1724913842721,0.05219798,144.98,144.93,10.65036338]
[1724913843028,10.65219798,144.98,144.93,0.05036338]
[1724913843221,1.3154,144.97,144.93,0.05036338]
[1724913843829,3.4487,144.95,144.93,0.05036338]
[1724913845520,3.4488,144.94,144.93,0.05036338]
[1724913845721,0.04755605,144.95,144.93,0.05036338]
[1724913846627,3.49625605,144.95,144.93,0.05036338]
[1724913846823,0.04755605,144.95,144.93,0.05036338]
[1724913847832,3.49625605,144.95,144.93,0.05036338]
[1724913848228,0.04755605,144.95,144.93,3.49936338]
[1724913849426,3.49615605,144.95,144.93,3.49936338]
[1724913849731,3.49615605,144.95,144.93,0.05036338]
[1724913850231,3.4488,144.94,144.93,0.05036338]
[1724913860942,1.28265605,144.95,144.93,0.05036338]
[1724913860943,0.04755605,144.95,144.93,0.05036338]
[1724913861139,0.04755605,144.95,144.94,10.6]
[1724913865041,0.04755605,144.95,144.93,0.05036338]
[1724913865645,3.4488,144.94,144.93,0.05036338]
[1724913869441,3.49625605,144.95,144.93,0.05036338]
[1724913873648,3.49625605,144.95,144.93,3.49926338]
[1724913874346,3.4488,144.94,144.93,0.05036338]
[1724913884350,3.49625605,144.95,144.93,0.05036338]
[1724913887458,3.4488,144.94,144.93,0.05036338]
[1724913896661,3.49615605,144.95,144.93,0.05036338]
[1724913898660,3.4488,144.94,144.93,0.05036338]
[1724913900058,0.04755605,144.95,144.94,3.4488]
[1724913904370,349.6,145.02,144.94,10.6]
[1724913904575,10.6,145.01,144.93,4.7]
[1724913904765,10.6,145.01,144.94,10.6]
[1724913904965,3.4475,145.0,144.96,3.4481]
[1724913905367,0.04632194,144.99,144.97,0.05252229]
[1724913906065,0.04632194,144.99,144.98,3.4478]
[1724913910571,0.04632194,144.99,144.97,3.50052229]
[1724913911377,0.04632194,144.99,144.97,0.05252229]
[1724913912475,0.04632194,144.99,144.97,3.50052229]
[1724913913175,3.4478,144.98,144.97,0.05252229]
[1724913913474,10.64632194,144.99,144.92,10.6]
[1724913913475,10.6,144.99,144.92,10.6]
[1724913913669,3.4482,144.97,144.93,3.4489]
[1724913914265,3.4482,144.97,144.92,10.6]
[1724913914473,0.04379123,144.96,144.94,3.4487]
[1724913914673,0.04379123,144.96,144.93,0.04539714]
[1724913915270,3.49229123,144.96,144.93,3.49439714]
[1724913915474,0.04379123,144.96,144.93,3.49439714]
[1724913915775,0.04379123,144.96,144.93,0.04539714]
[1724913918078,0.04379123,144.96,144.93,3.49429714]
[1724913923378,3.49209123,144.96,144.93,3.49429714]
[1724913932683,0.04379123,144.96,144.93,0.04539714]
[1724913933393,3.49229123,144.96,144.93,3.49439714]
[1724913935486,0.04379123,144.96,144.95,3.4486]
[1724913935686,0.04379123,144.96,144.95,18.7486]
[1724913941293,0.04379123,144.96,144.93,0.04539714]
[1724913941593,10.6,144.94,144.87,10.6]
[1724913941894,10.6,144.93,144.88,3.4501]
[1724913942593,3.4495,144.91,144.88,3.4501]
[1724913945798,3.4495,144.91,144.87,14.0504]
[1724913946194,3.4495,144.91,144.87,10.6]
[1724913947501,3.4495,144.91,144.88,3.4502]
[1724913947695,3.50166122,144.92,144.88,3.4502]
[1724913950398,3.50166122,144.92,144.89,3.45]
[1724913951398,3.4495,144.91,144.89,3.45]
[1724913953502,10.6,144.91,144.85,4.7]
[1724913953694,0.04750248,144.89,144.85,4.7]
[1724913954309,0.04750248,144.89,144.86,3.4506]
[1724913954598,0.04750248,144.89,144.84,15.3]
[1724913954798,3.4502,144.88,144.84,15.3]
[1724913955002,3.4502,144.88,144.84,4.7]
[1724913955593,3.4502,144.88,144.85,3.4507]
[1724913957006,3.49760248,144.89,144.86,3.4507]
[1724913957605,3.4502,144.88,144.86,3.4507]
[1724913960601,0.04750248,144.89,144.87,10.6]
[1724913960801,0.04750248,144.89,144.84,1.3016]
[1724913961007,0.04750248,144.89,144.86,10.6]
[1724913961407,0.04750248,144.89,144.88,10.6]
[1724913961814,0.04750248,144.89,144.88,3.4502]
[1724913962105,0.04750248,144.89,144.85,10.6]
[1724913962706,0.04750248,144.89,144.88,3.4502]
[1724913963309,0.04750248,144.89,144.88,14.0502]
[1724913967917,0.04750248,144.89,144.88,3.4502]
[1724913969512,0.04750248,144.89,144.87,3.4503]
[1724913969714,0.04750248,144.89,144.79,1.359]
[1724913969715,3.4511,144.85,144.79,1.359]
[1724913969913,10.64681372,144.83,144.79,3.4522]
[1724913970115,0.04392285,144.82,144.79,3.4522]
[1724913970614,3.49562285,144.82,144.79,3.4522]
[1724913971322,3.4519,144.81,144.78,3.4525]
[1724913971523,10.64392285,144.82,144.78,3.4525]
[1724913971717,14.09562285,144.82,144.79,3.4524]
[1724913972622,3.49562285,144.82,144.79,3.4524]
[1724913974220,0.04392285,144.82,144.78,3.4525]
[1724913974526,0.04392285,144.82,144.77,10.6]
[1724913974721,0.04392285,144.82,144.79,3.4523]
[1724913975225,0.04392285,144.82,144.81,3.4519]
[1724913982233,1.3482,144.88,144.81,18.67099523]
[1724913982431,1.3482,144.88,144.84,10.6]
[1724913982633,11.9303,144.9,144.84,10.6]
[1724913983232,0.05135422,144.88,144.86,0.04392285]
[1724913984629,0.05135422,144.88,144.86,3.49462285]
[1724913987134,0.05135422,144.88,144.86,0.04392285]
[1724913988429,0.05135422,144.88,144.86,3.49462285]
[1724913988627,3.50155422,144.88,144.86,0.04392285]
[1724913989936,3.4505,144.87,144.86,0.04392285]
[1724913993725,14.0505,144.87,144.86,0.04392285]
[1724913993924,3.4509,144.86,144.83,3.4513]
[1724913994735,3.451,144.85,144.83,3.4513]
[1724913995532,3.451,144.85,144.82,3.4516]
[1724913995733,3.4977916,144.85,144.82,3.4516]
[1724913996435,3.4512,144.84,144.81,8.1318]
[1724913996641,3.4512,144.84,144.81,3.4518]
[1724913999137,3.4514,144.83,144.81,3.4518]
[1724913999438,10.6,144.84,144.78,15.28]
[1724913999642,0.04728858,144.82,144.78,15.28]
[1724914000040,3.49908858,144.82,144.79,3.4522]
[1724914001541,0.04728858,144.82,144.8,3.4521]
[1724914001852,0.04728858,144.82,144.79,10.6]
[1724914002039,0.04728858,144.82,144.81,3.4519]
[1724914002442,0.04728858,144.82,144.81,14.0519]
[1724914004344,0.04728858,144.82,144.81,3.4519]
[1724914005748,0.04728858,144.82,144.8,3.4519]
[1724914009652,0.04728858,144.82,144.79,10.6]
[1724914010453,0.04728858,144.82,144.81,3.4519]
[1724914012949,0.04728858,144.82,144.79,10.6]
[1724914013154,0.04728858,144.82,144.8,3.4521]
[1724914017861,0.04728858,144.82,144.81,3.4519]
[1724914019960,0.04728858,144.82,144.79,10.6]
[1724914020853,0.04728858,144.82,144.8,3.4519]
[1724914022857,0.04728858,144.82,144.81,3.4519]
[1724914027365,0.04728858,144.82,144.8,3.452]
[1724914028062,10.64728858,144.82,144.79,3.4522]
[1724914028264,10.64728858,144.82,144.76,4.68]
[1724914028771,3.452,144.81,144.78,3.4525]
[1724914030161,3.4523,144.8,144.77,3.4528]
[1724914032668,3.4526,144.79,144.76,8.1331]
[1724914032868,0.05192791,144.79,144.76,4.68]
[1724914033173,0.05192791,144.79,144.77,3.4527]
[1724914037182,0.05192791,144.79,144.78,3.4526]
[1724914039080,0.05192791,144.79,144.77,3.4527]
[1724914040068,3.50442791,144.79,144.76,3.4531]
[1724914040574,0.05192791,144.79,144.77,3.4528]
[1724914040775,0.05192791,144.79,144.74,15.28]
[1724914041181,0.05192791,144.79,144.77,3.4528]
[1724914042682,14.10432791,144.79,144.74,10.6]